bitfinex-derivatives/quotes_SOLF0:USTF0_20250523
["timestamp","ask_amount","ask_price","bid_price","bid_amount"]
[1747987560569,5.4707,182.8,182.73,1.9886]
[1747987560769,110.6,182.79,182.76,5.4715]
[1747987560963,110.6,182.79,182.73,1.9886]
[1747987561159,0.03938263,182.78,182.74,0.04083989]
[1747987561458,0.03938263,182.78,182.77,5.4712]
[1747987561968,0.03938263,182.78,182.76,5.4716]
[1747987563361,0.03938263,182.78,182.77,5.4714]
[1747987564961,0.03938263,182.78,182.74,0.04083989]
[1747987565269,5.49976964,182.78,182.74,0.04083989]
[1747987565572,0.03938263,182.78,182.74,0.04083989]
[1747987566872,0.03938263,182.78,182.75,5.472]
[1747987567179,0.03938263,182.78,182.74,0.04083989]
[1747987567471,0.03938263,182.78,182.77,5.4715]
[1747987571567,5.10132141,182.84,182.82,5.4699]
[1747987571973,5.10132141,182.84,182.76,103.96]
[1747987572178,5.10132141,182.84,182.83,5.4697]
[1747987572373,110.58,182.86,182.77,110.58]
[1747987572569,0.03716909,182.83,182.8,0.03667119]
[1747987572773,110.58,182.86,182.84,5.4693]
[1747987573377,110.58,182.86,182.8,0.03667119]
[1747987573675,0.04033591,182.85,182.8,0.03667119]
[1747987574070,0.04033591,182.85,182.82,5.4699]
[1747987574269,0.04033591,182.85,182.8,0.03667119]
[1747987574576,0.04033591,182.85,182.83,5.4694]
[1747987574878,0.04033591,182.85,182.8,0.03667119]
[1747987576078,0.04033591,182.85,182.84,5.4694]
[1747987576378,0.04033591,182.85,182.8,0.03667119]
[1747987577272,0.04033591,182.85,182.83,5.4695]
[1747987577473,0.04033591,182.85,182.8,0.03667119]
[1747987579689,0.04033591,182.85,182.84,5.4694]
[1747987582086,0.04033591,182.85,182.8,0.03667119]
[1747987582478,0.04033591,182.85,182.81,5.4701]
[1747987582784,0.04033591,182.85,182.8,0.03667119]
[1747987583182,0.04033591,182.85,182.82,5.4698]
[1747987583376,0.04033591,182.85,182.8,0.03667119]
[1747987583577,111.5,182.93,182.8,0.03667119]
[1747987583882,5.4672,182.92,182.79,1.8652]
[1747987584383,111.5,182.93,182.89,5.4679]
[1747987584575,111.5,182.93,182.89,0.04109133]
[1747987584576,111.54187553,182.93,182.89,0.04109133]
[1747987585184,5.4672,182.92,182.89,0.04109133]
[1747987585391,111.54187553,182.93,182.89,5.50869133]
[1747987585685,111.54187553,182.93,182.89,0.04109133]
[1747987585982,111.54187553,182.93,182.91,5.4671]
[1747987587685,111.54187553,182.93,182.89,0.04109133]
[1747987587886,111.54187553,182.93,182.92,5.467]
[1747987589383,5.10132141,183.01,182.89,0.04109133]
[1747987589581,5.10132141,183.01,182.9,116.96038701]
[1747987589782,5.10132141,183.01,182.91,3.7893]
[1747987589985,5.10132141,183.01,182.99,5.4647]
[1747987590390,5.10132141,183.01,182.91,3.7893]
[1747987590584,0.04132419,182.98,182.97,5.4655]
[1747987592586,0.04132419,182.98,182.94,0.03670608]
[1747987594288,0.04132419,182.98,182.97,5.4655]
[1747987598096,5.46038701,183.08,182.95,1.8527]
[1747987598295,111.44,183.07,182.95,105.7327]
[1747987598595,111.44,183.07,182.96,5.46038701]
[1747987599296,111.44,183.1,183.07,5.4623]
[1747987599599,111.44,183.1,183.06,0.04169943]
[1747987599789,111.44,183.1,183.06,0.03722232]
[1747987600389,478.002,183.09,183.06,0.03722232]
[1747987600588,3.7589,183.16,183.06,0.03722232]
[1747987600795,111.44,183.15,183.06,0.03722232]
[1747987600982,111.44,183.15,183.09,5.4619]
[1747987600983,5.4608,183.13,183.09,5.4619]
[1747987601187,5.4608,183.13,183.09,5.50279814]
[1747987601494,111.44,183.15,183.09,0.04089814]
[1747987601887,5.4606,183.14,183.1,5.4616]
[1747987602597,5.4607,183.13,183.1,5.4616]
[1747987604393,5.4607,183.13,183.09,5.50279814]
[1747987605198,5.4607,183.13,183.1,5.4616]
[1747987605497,111.44,183.15,183.09,0.04089814]
[1747987606598,5.4605,183.14,183.11,5.4611]
[1747987606791,111.44,183.15,183.11,5.4611]
[1747987607501,116.9002,183.15,183.11,5.4611]
[1747987608799,111.46,183.18,183.09,0.04089814]
[1747987608998,111.46,183.18,183.09,4.04329814]
[1747987609203,111.46,183.18,183.15,5.4599]
[1747987609497,111.46,183.18,183.15,5.49651644]
[1747987609698,111.46,183.18,183.15,0.03661644]
[1747987610702,111.46,183.18,183.15,5.49671644]
[1747987611000,111.46,183.18,183.15,0.03661644]
[1747987613006,116.9193,183.18,183.15,0.03661644]
[1747987613303,111.46,183.18,183.15,0.03661644]
[1747987613703,5.4596,183.17,183.15,0.03661644]
[1747987614998,5.4598,183.16,183.15,0.03661644]
[1747987620010,5.461,183.12,183.09,1.9933]
[1747987620313,5.461,183.12,183.08,5.4621]
[1747987620514,111.4,183.14,183.08,5.4621]
[1747987620715,111.4,183.14,183.07,1.9179]
[1747987621023,0.03751324,183.12,183.09,0.03779142]
[1747987622216,0.03751324,183.12,183.11,5.4613]
[1747987622918,0.03751324,183.12,183.1,5.4615]
[1747987623308,0.03751324,183.12,183.09,0.03779142]
[1747987623923,0.03751324,183.12,183.11,5.4613]
[1747987624114,6.93229241,183.26,183.09,0.03779142]
[1747987624315,5.46038701,183.24,183.09,111.4]
[1747987625220,5.4588,183.2,183.15,0.0375158]
[1747987625415,116.8588,183.2,183.15,0.0375158]
[1747987625609,111.4,183.2,183.15,0.0375158]
[1747987626017,111.4,183.2,183.18,5.459]
[1747987626219,1.8883,183.26,183.15,0.0375158]
[1747987626419,111.4,183.25,183.19,0.04181818]
[1747987626619,111.4,183.25,183.2,5.4584]
[1747987626818,111.4,183.25,183.19,0.04181818]
[1747987627121,111.4,183.27,183.24,5.4574]
[1747987627323,111.4,183.27,183.24,0.0371785]
[1747987627528,5.46038701,183.32,183.24,0.0371785]
[1747987627823,111.4,183.31,183.24,0.0371785]
[1747987628023,111.4,183.32,183.26,0.03734788]
[1747987628822,5.03633809,183.31,183.26,0.03734788]
[1747987629522,5.03633809,183.31,183.27,5.4566]
[1747987629817,111.36,183.32,183.27,5.4566]
[1747987630025,116.8153,183.32,183.27,5.4566]
[1747987630215,111.36,183.32,183.26,0.03734788]
[1747987630525,116.8152,183.32,183.26,0.03734788]
[1747987630819,111.36,183.32,183.26,0.03734788]
[1747987632225,5.4559,183.3,183.26,5.49414788]
[1747987632422,111.36,183.32,183.26,0.03734788]
[1747987633123,5.46038701,183.31,183.26,0.03734788]
[1747987633424,5.4566,183.27,183.26,0.03734788]
[1747987637226,111.34,183.28,183.26,0.03734788]
[1747987637926,116.7965,183.28,183.26,0.03734788]
[1747987638127,111.34,183.28,183.26,0.03734788]
[1747987639336,5.4566,183.27,183.26,0.03734788]
[1747987640437,116.7964,183.28,183.26,0.03734788]
[1747987640732,111.34,183.28,183.26,0.03734788]
[1747987641035,116.7958,183.3,183.26,0.03734788]
[1747987641333,116.7958,183.3,183.26,5.49414788]
[1747987642235,116.7958,183.3,183.27,5.4565]
[1747987642936,111.34,183.3,183.27,5.4565]
[1747987644328,111.34,183.3,183.26,0.03734788]
[1747987644531,111.32,183.32,183.26,0.03734788]
[1747987644731,5.4555,183.31,183.28,5.4562]
[1747987645038,111.32,183.32,183.26,0.03734788]
[1747987645239,116.7752,183.32,183.29,5.4558]
[1747987645440,111.32,183.32,183.26,0.03734788]
[1747987646042,111.32,183.32,183.31,5.4554]
[1747987647038,5.4543,183.35,183.32,5.4551]
[1747987647336,113.2235,183.36,183.3,0.03478788]
[1747987647936,5.4547,183.34,183.3,0.03478788]
[1747987648138,113.2235,183.36,183.3,0.03478788]
[1747987648548,5.4553,183.32,183.3,0.03478788]
[1747987648938,113.2235,183.36,183.3,0.03478788]
[1747987649742,5.4554,183.31,183.3,0.03478788]
[1747987653742,111.32,183.32,183.3,0.03478788]
[1747987654742,111.32,183.32,183.3,5.49028788]
[1747987655143,111.32,183.32,183.31,5.4554]
[1747987655536,111.32,183.32,183.3,0.03478788]
[1747987655737,111.32,183.32,183.3,5.49028788]
[1747987656143,111.32,183.32,183.3,0.03478788]
[1747987656346,111.32,183.32,183.31,5.4554]
[1747987656547,111.32,183.32,183.3,0.03478788]
[1747987656838,111.3,183.34,183.31,5.4553]
[1747987657045,111.3,183.34,183.3,0.03478788]
[1747987657345,111.3,183.34,183.32,5.4548]
[1747987657945,111.3,183.34,183.3,0.03478788]
[1747987658155,583.08,183.38,183.3,0.03478788]
[1747987658534,5.4537,183.37,183.3,0.03478788]
[1747987658744,583.08,183.38,183.3,0.03478788]
[1747987659243,5.4538,183.37,183.33,5.4545]
[1747987659540,583.08,183.38,183.3,0.03478788]
[1747987659741,5.4542,183.36,183.32,5.455]
[1747987660042,583.08,183.38,183.3,0.03478788]
[1747987660242,5.454,183.36,183.32,5.4549]
[1747987660444,583.08,183.38,183.32,5.4549]
[1747987660744,5.4542,183.35,183.32,5.4549]
[1747987661744,583.08,183.38,183.3,0.03478788]
[1747987662448,5.4549,183.33,183.31,5.4553]
[1747987662643,5.4549,183.33,183.3,0.03478788]
[1747987662843,588.54038701,183.38,183.3,0.03478788]
[1747987663046,588.54038701,183.38,183.3,5.49048788]
[1747987663650,588.54038701,183.38,183.3,0.03478788]
[1747987664151,10.60681746,183.4,183.37,5.4534]
[1747987664447,10.60681746,183.4,183.37,0.03682703]
[1747987664846,5.4532,183.39,183.37,0.03682703]
[1747987665242,10.60681746,183.4,183.37,0.03682703]
[1747987665451,16.05981746,183.4,183.37,5.49032703]
[1747987666650,5.4531,183.39,183.37,0.03682703]
[1747987667850,5.4533,183.38,183.37,0.03682703]
[1747987670852,10.60681746,183.4,183.37,0.03682703]
[1747987671652,111.22,183.39,183.37,0.03682703]
[1747987673758,116.6731,183.39,183.37,0.03682703]
[1747987674258,111.22,183.39,183.37,0.03682703]
[1747987674754,116.6731,183.39,183.37,0.03682703]
[1747987675249,5.4533,183.38,183.37,0.03682703]
[1747987678458,111.22,183.39,183.3,111.22]
[1747987678459,5.4548,183.34,183.3,5.4557]
[1747987678759,111.22,183.35,183.27,1.9445]
[1747987679359,5.4546,183.34,183.3,5.4554]
[1747987679554,5.49087358,183.34,183.3,5.49516805]
[1747987679750,5.4548,183.33,183.3,0.03976805]
[1747987679954,0.03627358,183.34,183.3,0.03976805]
[1747987680659,5.4549,183.33,183.3,5.49546805]
[1747987680859,0.03627358,183.34,183.3,0.03976805]
[1747987681661,0.03627358,183.34,183.3,5.49526805]
[1747987681867,0.03627358,183.34,183.3,0.03976805]
[1747987682260,5.4552,183.32,183.3,0.03976805]
[1747987683261,0.03627358,183.34,183.3,0.03976805]
[1747987683759,5.4549,183.33,183.3,0.03976805]
[1747987684059,0.03627358,183.34,183.3,0.03976805]
[1747987684361,5.4551,183.33,183.3,0.03976805]
[1747987684561,0.03627358,183.34,183.3,0.03976805]
[1747987686056,5.4549,183.33,183.3,0.03976805]
[1747987686363,0.03627358,183.34,183.3,0.03976805]
[1747987686670,5.49107358,183.34,183.31,5.4552]
[1747987686962,0.03627358,183.34,183.3,0.03976805]
[1747987687555,2.01828201,183.37,183.31,214.9]
[1747987687853,2.01828201,183.37,183.32,2.0037]
[1747987688051,2.01828201,183.37,183.36,5.4539]
[1747987688452,10.60681746,183.4,183.38,5.453]
[1747987688658,10.60681746,183.4,183.35,0.03625484]
[1747987690572,10.60681746,183.4,183.38,5.4533]
[1747987690863,10.60681746,183.4,183.35,0.03625484]
[1747987691053,16.05961746,183.4,183.37,5.4534]
[1747987691263,10.60681746,183.4,183.35,0.03625484]
[1747987693770,10.60681746,183.4,183.39,5.453]
[1747987694661,10.60681746,183.4,183.38,5.4532]
[1747987695169,10.60681746,183.4,183.39,5.453]
[1747987696169,1.54351746,183.4,183.39,5.453]
[1747987696471,111.22,183.48,183.39,5.46038701]
[1747987696664,111.22,183.48,183.42,0.03506684]
[1747987696862,111.22,183.48,183.43,5.4516]
[1747987697361,111.22,183.48,183.42,0.03506684]
[1747987697766,5.4513,183.45,183.42,0.03506684]
[1747987699265,5.4516,183.44,183.42,0.03506684]
[1747987699664,111.22,183.48,183.42,0.03506684]
[1747987700366,5.4516,183.44,183.42,0.03506684]
[1747987700571,111.34,183.44,183.42,0.03506684]
[1747987700867,116.7918,183.44,183.42,0.03506684]
[1747987701067,111.34,183.44,183.42,0.03506684]
[1747987701873,111.34,183.44,183.42,5.48716684]
[1747987702170,111.34,183.44,183.42,0.03506684]
[1747987702469,111.34,183.44,183.42,5.48706684]
[1747987703071,111.34,183.44,183.43,5.4518]
[1747987703369,111.34,183.44,183.42,0.03506684]
[1747987703669,111.34,183.44,183.42,5.48716684]
[1747987703873,111.34,183.44,183.42,0.03506684]
[1747987705169,116.7916,183.44,183.42,0.03506684]
[1747987706570,111.34,183.44,183.42,0.03506684]
[1747987706873,111.34,183.44,183.43,5.4518]
[1747987707672,111.34,183.44,183.42,5.48716684]
[1747987708175,111.34,183.44,183.42,0.03506684]
[1747987708571,6.7760019,183.55,183.42,0.03506684]
[1747987708767,6.7760019,183.55,183.47,0.03720732]
[1747987709270,5.4488,183.54,183.5,5.4497]
[1747987710178,6.7760019,183.55,183.47,0.03720732]
[1747987710677,12.2245019,183.55,183.5,5.4495]
[1747987711171,6.7760019,183.55,183.47,0.03720732]
[1747987711973,115.0527,183.56,183.47,0.03720732]
[1747987712378,115.0527,183.56,183.49,5.45]
[1747987713075,115.0527,183.56,183.47,0.03720732]
[1747987713870,110.3560019,183.65,183.47,0.03720732]
[1747987713871,6.7760019,183.65,183.47,0.03720732]
[1747987714068,6.7760019,183.65,183.59,5.46038701]
[1747987714272,6.7760019,183.65,183.6,0.03722993]
[1747987714670,12.2213019,183.65,183.61,5.4464]
[1747987714873,12.2213019,183.65,183.6,0.03722993]
[1747987715179,6.7760019,183.65,183.6,0.03722993]
[1747987715374,6.7760019,183.65,183.63,5.4456]
[1747987715578,3.8845,183.68,183.63,5.4456]
[1747987715778,3.8845,183.68,183.6,0.03722993]
[1747987715983,9.3292,183.68,183.6,0.03722993]
[1747987716180,470.98,183.73,183.6,0.03722993]
[1747987716477,116.961,183.72,183.65,0.03576366]
[1747987716673,5.4443,183.69,183.65,0.03576366]
[1747987717067,5.4446,183.68,183.65,0.03576366]
[1747987717280,116.961,183.72,183.65,0.03576366]
[1747987717674,5.4445,183.68,183.65,0.03576366]
[1747987717976,116.961,183.72,183.65,0.03576366]
[1747987718777,5.4449,183.67,183.65,0.03576366]
[1747987719278,111.24,183.68,183.65,0.03576366]
[1747987720470,5.445,183.66,183.65,0.03576366]
[1747987728188,5.445,183.66,183.65,6.366e-05]
[1747987728386,5.46038701,183.67,183.52,103.5]
[1747987728585,111.24,183.68,183.52,103.5]
[1747987728586,5.46038701,183.63,183.52,103.5]
[1747987728782,5.4474,183.58,183.52,103.5]
[1747987728976,112.46,183.62,183.47,5.7413]
[1747987728977,5.46038701,183.6,183.47,5.7413]
[1747987729280,0.03535824,183.55,183.52,0.03909511]
[1747987729482,112.49535824,183.55,183.52,0.03909511]
[1747987730286,112.49535824,183.55,183.53,5.4487]
[1747987730480,112.49535824,183.55,183.52,0.03909511]
[1747987731088,5.4489,183.54,183.52,0.03909511]
[1747987731481,112.49535824,183.55,183.52,0.03909511]
[1747987731682,0.03535824,183.55,183.52,0.03909511]
[1747987732589,5.4488,183.54,183.52,0.03909511]
[1747987732789,0.03535824,183.55,183.52,0.03909511]
[1747987733182,5.4486,183.54,183.52,0.03909511]
[1747987733389,112.48,183.53,183.52,0.03909511]
[1747987733790,117.9289,183.53,183.52,0.03909511]
[1747987734694,112.48,183.53,183.52,0.03909511]
[1747987735293,0.03535824,183.55,183.52,5.48799511]
[1747987735488,112.48,183.54,183.52,5.48799511]
[1747987735692,112.48,183.54,183.52,0.03909511]
[1747987735897,112.48,183.54,183.52,5.48819511]
[1747987736193,112.48,183.54,183.52,0.03909511]
[1747987736396,0.03535824,183.55,183.52,0.03909511]
[1747987736595,0.03535824,183.55,183.54,5.4486]
[1747987737497,0.03535824,183.55,183.52,0.03909511]
[1747987738091,5.4487,183.54,183.52,0.03909511]
[1747987738688,5.4489,183.53,183.52,0.03909511]
[1747987739088,0.03535824,183.55,183.43,3.7539]
[1747987739293,5.4501,183.49,183.45,5.451]
[1747987739496,117.9501,183.49,183.45,5.451]
[1747987740102,112.53827859,183.49,183.45,0.03654176]
[1747987740699,112.5,183.48,183.45,0.03654176]
[1747987741603,112.5,183.48,183.46,5.4509]
[1747987741802,112.5,183.48,183.45,0.03654176]
[1747987742805,0.03827859,183.49,183.45,0.03654176]
[1747987742991,112.52,183.47,183.45,0.03654176]
[1747987743191,0.03827859,183.49,183.47,5.4506]
[1747987743396,0.03827859,183.49,183.45,0.03654176]
[1747987743602,112.55827859,183.49,183.45,0.03654176]
[1747987743797,112.55827859,183.49,183.48,5.4504]
[1747987745205,0.03827859,183.49,183.48,5.4504]
[1747987748404,112.52,183.56,183.46,7.37148701]
[1747987748601,112.52,183.56,183.49,5.46038701]
[1747987748804,112.52,183.56,183.47,5.46038701]
[1747987749107,112.52,183.56,183.46,7.37148701]
[1747987749305,0.03633046,183.53,183.49,0.0381825]
[1747987749606,0.03633046,183.53,183.49,5.49856951]
[1747987750513,0.03633046,183.53,183.52,5.4492]
[1747987753304,0.03633046,183.53,183.51,5.4494]
[1747987753511,0.03633046,183.53,183.49,0.0381825]
[1747987755014,0.03633046,183.53,183.52,5.4492]
[1747987759717,112.24,183.59,183.49,5.49856951]
[1747987760318,112.24,183.59,183.58,5.4474]
[1747987760824,112.24,183.59,183.57,5.48222307]
[1747987761021,112.24,183.59,183.57,5.4476]
[1747987761825,5.4468,183.6,183.58,5.4474]
[1747987762022,112.22,183.6,183.58,5.4474]
[1747987762216,117.6668,183.6,183.57,5.4476]
[1747987762918,5.4471,183.59,183.56,0.03443928]
[1747987763123,112.22,183.6,183.56,0.03443928]
[1747987763823,5.4477,183.57,183.56,0.03443928]
[1747987769523,5.4491,183.53,183.5,5.4497]
[1747987769724,112.22,183.52,183.46,1.9111]
[1747987770431,5.4495,183.51,183.44,114.2112]
[1747987770723,0.03443928,183.49,183.46,0.03452156]
[1747987770928,0.03443928,183.49,183.48,5.4503]
[1747987773833,112.22,183.56,183.46,10.93622156]
[1747987774140,112.22,183.56,183.46,10.9017]
[1747987774729,5.4483,183.55,183.51,5.4493]
[1747987775226,112.22,183.56,183.49,0.03751497]
[1747987775534,5.4487,183.54,183.51,5.4494]
[1747987775728,5.4487,183.54,183.49,0.03751497]
[1747987775928,112.22,183.56,183.49,0.03751497]
[1747987776128,5.4491,183.53,183.5,5.4496]
[1747987776329,112.22,183.56,183.49,0.03751497]
[1747987776632,5.4493,183.52,183.49,5.48731497]
[1747987777340,5.449,183.53,183.5,5.4497]
[1747987777834,5.4487,183.54,183.51,5.4494]
[1747987778134,112.22,183.56,183.51,5.4494]
[1747987778335,5.4487,183.54,183.51,5.4494]
[1747987778635,112.22,183.56,183.51,5.4494]
[1747987778832,5.4489,183.53,183.51,5.4494]
[1747987779436,117.6687,183.54,183.51,5.4494]
[1747987780937,5.4489,183.53,183.51,5.4494]
[1747987781126,112.22,183.54,183.51,5.4494]
[1747987781838,117.6687,183.54,183.51,5.4494]
[1747987782637,112.22,183.54,183.5,5.4496]
[1747987783040,5.4489,183.53,183.51,5.4494]
[1747987783339,5.4489,183.53,183.49,0.03751497]
[1747987783638,5.4489,183.53,183.5,5.4495]
[1747987784141,5.4493,183.52,183.49,5.48741497]
[1747987784336,112.22,183.54,183.49,0.03751497]
[1747987784537,1.8385,183.53,183.49,0.03751497]
[1747987785038,5.4498,183.5,183.49,0.03751497]
[1747987786034,5.4504,183.48,183.45,5.451]
[1747987786238,112.24,183.48,183.45,5.451]
[1747987786734,117.6904,183.48,183.42,4.93668638]
[1747987786939,112.24,183.48,183.42,4.93668638]
[1747987787140,0.03463084,183.47,183.43,0.03825151]
[1747987789239,0.03463084,183.47,183.46,5.4509]
[1747987789833,3.084e-05,183.47,183.46,5.4509]
[1747987790029,3.084e-05,183.47,183.46,10.91128701]
[1747987792235,5.04976904,183.53,183.52,5.4492]
[1747987798946,111.42,183.55,183.51,0.03668649]
[1747987799151,111.42,183.55,183.54,5.4486]
[1747987800350,111.42,183.55,183.51,0.03668649]
[1747987800850,111.42,183.55,183.54,5.4486]
[1747987801245,477.51306904,183.62,183.51,0.03668649]
[1747987801445,5.4471,183.59,183.51,0.03668649]
[1747987802455,5.4474,183.58,183.51,0.03668649]
[1747987802648,111.4,183.6,183.53,5.4486]
[1747987803153,5.4479,183.57,183.53,5.4486]
[1747987803449,111.4,183.56,183.53,5.4486]
[1747987803852,111.4,183.56,183.54,5.4485]
[1747987804050,111.4,183.56,183.51,0.03668649]
[1747987804351,111.4,183.56,183.55,5.4483]
[1747987804753,111.4,183.56,183.51,0.03668649]
[1747987805049,111.4,183.56,183.54,5.4483]
[1747987805250,111.4,183.56,183.51,0.03668649]
[1747987806553,111.4,183.56,183.55,5.4483]
[1747987807051,3.6834,183.61,183.56,5.4479]
[1747987807358,111.4,183.6,183.57,0.03588106]
[1747987807543,111.4,183.6,183.57,0.03480148]
[1747987808051,5.4474,183.58,183.57,0.03480148]
[1747987810554,5.4468,183.6,183.57,5.48240148]
[1747987810760,111.4,183.59,183.57,5.48240148]
[1747987810956,111.4,183.59,183.57,0.03480148]
[1747987811858,5.4474,183.58,183.57,0.03480148]
[1747987812260,111.4,183.59,183.57,0.03480148]
[1747987812664,116.8472,183.59,183.57,0.03480148]
[1747987813362,116.8472,183.59,183.57,5.48240148]
[1747987813856,116.8472,183.59,183.57,0.03480148]
[1747987814249,5.4474,183.58,183.57,0.03480148]
[1747987818453,5.4474,183.58,183.48,111.42]
[1747987818454,1.9561,183.58,183.48,111.42]
[1747987818653,3.87,183.58,183.46,103.52]
[1747987818962,5.4486,183.54,183.51,5.4493]
[1747987819259,111.4,183.53,183.51,5.4493]
[1747987819461,111.4,183.53,183.51,5.48934241]
[1747987819658,116.849,183.53,183.51,0.04004241]
[1747987819857,111.4,183.53,183.51,0.04004241]
[1747987820361,5.4491,183.52,183.51,0.04004241]
[1747987821357,5.4495,183.51,183.48,5.4501]
[1747987821561,111.4,183.53,183.49,5.4497]
[1747987821860,116.8489,183.53,183.43,10.39707339]
[1747987822162,1.9561,183.58,183.46,5.46038701]
[1747987822358,0.03501226,183.54,183.5,0.03942836]
[1747987822665,0.03501226,183.54,183.53,5.4488]
[1747987837080,1.226e-05,183.54,183.53,5.4488]
[1747987838184,7.3463,183.64,183.52,116.02038701]
[1747987838378,110.56,183.63,183.55,5.46038701]
[1747987838874,110.56,183.64,183.55,5.46038701]
[1747987839079,110.56,183.64,183.56,3.7944]
[1747987839281,0.03992476,183.62,183.61,5.4465]
[1747987840280,5.4446,183.68,183.64,5.4454]
[1747987840581,116.0046,183.68,183.58,108.98038701]
[1747987841084,116.0046,183.68,183.65,5.4451]
[1747987841385,116.0046,183.68,183.65,5.4863942]
[1747987841683,110.56,183.68,183.65,0.0412942]
[1747987842085,110.54,183.68,183.65,5.4863942]
[1747987842380,110.54,183.7,183.65,0.0412942]
[1747987842685,110.54,183.7,183.67,5.4445]
[1747987843185,110.54,183.7,183.67,5.4447]
[1747987844385,115.9841,183.7,183.67,5.4447]
[1747987844887,5.4441,183.7,183.67,5.4447]
[1747987845184,115.9841,183.7,183.67,5.4447]
[1747987845790,110.54,183.7,183.65,0.0412942]
[1747987847386,115.9839,183.7,183.66,5.445]
[1747987848087,5.4442,183.69,183.65,5.4865942]
[1747987848287,5.4442,183.69,183.65,0.0412942]
[1747987848987,5.4442,183.69,183.66,5.445]
[1747987849187,5.4446,183.68,183.65,0.0412942]
[1747987849389,110.54,183.7,183.65,0.0412942]
[1747987849594,110.54,183.7,183.65,5.4863942]
[1747987850089,5.4447,183.68,183.65,5.4863942]
[1747987850284,110.54,183.7,183.65,0.0412942]
[1747987850884,3.9217,183.73,183.65,0.0412942]
[1747987851390,7.4534,183.73,183.68,5.4442]
[1747987851785,110.48,183.74,183.66,103.46]
[1747987853396,110.48,183.74,183.71,5.4435]
[1747987853695,115.94038701,183.74,183.63,103.46]
[1747987854393,117.90388701,183.74,183.63,103.46]
[1747987854592,0.03567696,183.7,183.67,0.04171109]
[1747987854996,5.4441,183.69,183.67,0.04171109]
[1747987862508,110.49567696,183.7,183.67,0.04171109]
[1747987863301,5.4441,183.69,183.67,0.04171109]
[1747987863605,0.03567696,183.7,183.67,0.04171109]
[1747987864907,110.49567696,183.7,183.67,0.04171109]
[1747987865208,5.4441,183.69,183.67,0.04171109]
[1747987865409,110.49567696,183.7,183.67,0.04171109]
[1747987865706,110.46,183.69,183.57,213.92]
[1747987865908,112.4059,183.69,183.57,213.92]
[1747987866107,112.4059,183.69,183.57,110.46]
[1747987866307,1.8398,183.68,183.57,110.46]
[1747987866505,7.2843,183.68,183.57,110.46]
[1747987866710,0.0402619,183.64,183.61,0.03825226]
[1747987867116,0.0402619,183.64,183.63,5.4459]
[1747987868316,5.08887375,183.81,183.63,586.32]
[1747987868616,5.08887375,183.73,183.67,5.46038701]
[1747987868817,5.08887375,183.73,183.68,213.92]
[1747987869408,0.03960625,183.72,183.69,0.0393004]
[1747987869703,0.03960625,183.72,183.69,110.4993004]
[1747987869915,0.03960625,183.72,183.71,5.4436]
[1747987874817,0.03960625,183.72,183.7,5.4437]
[1747987875112,0.03960625,183.72,183.63,585.79001058]
[1747987875309,0.03960625,183.72,183.67,5.4445]
[1747987875511,0.03960625,183.72,183.64,5.46038701]
[1747987875813,0.03960625,183.72,183.67,5.46038701]
[1747987876021,0.03960625,183.72,183.71,5.4436]
[1747987879726,0.03960625,183.72,183.7,108.8638]
[1747987880025,0.03960625,183.72,183.7,103.42]
[1747987880323,0.03960625,183.72,183.7,108.8636]
[1747987881222,0.03960625,183.72,183.71,5.4436]
[1747987896439,0.03960625,183.72,183.71,221.1036]
[1747987899045,1.9295,183.8,183.77,5.4418]
[1747987900046,1.96957257,183.8,183.77,5.48371661]
[1747987902549,1.96957257,183.8,183.77,0.04191661]
[1747987903352,5.4412,183.79,183.77,0.04191661]
[1747987903544,1.96957257,183.8,183.77,0.04191661]
[1747987904052,1.96957257,183.8,183.74,5.4426]
[1747987904848,1.96957257,183.8,183.7,112.26]
[1747987905054,1.96957257,183.8,183.73,0.04118858]
[1747987905453,1.96957257,183.8,183.73,5.48398858]
[1747987905454,5.4423,183.76,183.73,5.48398858]